bitfinex/quotes_ETHUSD_20260302
["timestamp","ask_amount","ask_price","bid_price","bid_amount"]
[1772466973244,1.22188638,2049.4,2048.1,6.0656052]
[1772466973451,4.82745442,2049.4,2048.2,1.005]
[1772466973769,1.22189369,2049.4,2048.3,5.80770804]
[1772466974159,1.22189369,2049.4,2048.3,4.80270804]
[1772466974473,1.22189369,2049.4,2048.4,1.006]
[1772466974673,3.71233229,2049.3,2048.5,0.7856595]
[1772466975044,3.71233229,2049.3,2048.6,1.006]
[1772466975443,3.71233229,2049.3,2047.7,1.22088196]
[1772466975654,3.71233229,2049.1,2047.6,1.005]
[1772466975974,3.71233229,2048.9,2047.6,1.005]
[1772466976376,3.71233229,2048.9,2047.7,0.791]
[1772466976563,3.71233229,2048.9,2047.8,0.791]
[1772466976963,3.71233229,2048.9,2046.2,1.22177695]
[1772466976964,3.71233229,2048.1,2046.4,3.71153954]
[1772466977154,3.71233229,2048.1,2046.5,0.791]
[1772466977480,3.71233229,2048.1,2046.6,1.005]
[1772466977673,3.6349115,2047.8,2046.7,1.005]
[1772466977861,3.6349115,2047.8,2046.5,1.22159784]
[1772466977862,3.6349115,2047.8,2046.8,1.005]
[1772466978079,3.6349115,2047.8,2046.5,1.22159784]
[1772466978577,3.6349115,2047.8,2046.6,1.005]
[1772466978879,1.22070312,2048.0,2046.7,3.82043518]
[1772466979259,4.85561462,2048.0,2046.8,1.005]
[1772466979459,3.6349115,2047.9,2046.5,1.22159784]
[1772466979659,4.85573384,2047.8,2046.6,1.006]
[1772466980270,1.22082234,2047.8,2046.6,4.82643518]
[1772466980446,1.22082234,2047.8,2046.6,3.82043518]
[1772466980646,1.22082234,2047.8,2046.7,1.005]
[1772466980990,1.22082234,2047.8,2046.6,3.82043518]
[1772466981149,1.22082234,2047.8,2046.8,1.005]
[1772466981351,1.22082234,2047.8,2046.6,3.82043518]
[1772466981548,4.85553834,2048.2,2046.9,3.82043518]
[1772466981747,1.109,2049.1,2047.1,3.82043518]
[1772466981748,1.22040517,2048.5,2047.1,3.82043518]
[1772466981971,1.22038236,2048.6,2047.3,3.82043518]
[1772466982288,3.6349115,2048.5,2047.0,0.065536]
[1772466982464,0.002,2047.6,2047.1,4.82543518]
[1772466982655,1.22038236,2048.6,2047.2,3.82043518]
[1772466983274,0.002,2047.8,2047.3,4.82443518]
[1772466983581,8.5162939,2048.8,2047.4,1.22106085]
[1772466983880,8.5162939,2048.8,2047.4,2.22506085]
[1772466984080,0.002,2048.1,2047.4,2.22506085]
[1772466984263,0.002,2048.1,2047.5,1.004]
[1772466984574,8.0182939,2048.8,2047.6,1.004]
[1772466984777,1.22022647,2048.8,2047.6,4.82443518]
[1772466984950,1.22022647,2048.8,2047.6,3.82043518]
[1772466985151,4.85513797,2048.8,2047.4,1.22106085]
[1772466985390,3.6349115,2048.6,2046.8,3.82043518]
[1772466985704,3.6349115,2048.2,2046.9,2.2253495]
[1772466985851,3.6349115,2048.2,2046.9,1.2213495]
[1772466986055,3.6349115,2048.2,2047.0,1.004]
[1772466986281,3.6349115,2048.2,2046.9,1.2213495]
[1772466986448,3.6349115,2048.2,2046.5,1.22159784]
[1772466986957,3.6349115,2048.2,2046.6,1.003]
[1772466987158,3.6349115,2048.2,2046.5,1.22159784]
[1772466987532,3.6349115,2047.8,2046.2,1.22177695]
[1772466987654,3.6349115,2047.8,2046.3,1.003]
[1772466987655,3.6349115,2047.4,2046.3,1.003]
[1772466988259,3.6349115,2047.4,2046.1,1.003]
[1772466988453,3.6349115,2047.4,2046.2,1.003]
[1772466988759,3.6349115,2047.4,2046.1,1.003]
[1772466989359,3.6349115,2047.4,2046.2,1.002]
[1772466989562,2.89746885,2047.3,2045.7,0.001]
[1772466989758,3.6349115,2046.2,2044.7,1.002]
[1772466989958,3.6349115,2046.2,2044.8,3.82043518]
[1772466990389,3.6349115,2046.2,2044.9,1.003]
[1772466990576,3.6349115,2046.2,2044.8,3.82043518]
[1772466991073,3.6349115,2046.2,2044.4,5.04328785]
[1772466991289,3.6349115,2046.2,2044.6,3.82043518]
[1772466991813,4.85673521,2046.2,2044.8,3.82043518]
[1772466992121,4.85673521,2046.2,2044.9,1.003]
[1772466992421,4.85673521,2046.2,2045.0,1.002]
[1772466993135,4.8863451,2046.6,2045.1,3.82043518]
[1772466993278,1.22157857,2046.6,2045.1,3.82043518]
[1772466993778,1.22157857,2046.6,2045.2,1.22237433]
[1772466993972,4.85649007,2046.6,2045.3,1.002]
[1772466994300,4.85649007,2046.6,2045.4,1.002]
[1772466995103,1.22157857,2046.6,2045.4,4.82243518]
[1772466995297,4.88550092,2046.9,2045.4,4.82243518]
[1772466995298,1.22135912,2046.9,2045.4,4.82243518]
[1772466995497,4.85627062,2046.9,2045.4,4.82243518]
[1772466995704,4.85627062,2046.9,2045.5,5.04263024]
[1772466995905,4.85627062,2046.9,2045.6,3.82043518]
[1772466996072,1.22118014,2047.2,2045.6,3.82043518]
[1772466996408,1.22114074,2047.3,2045.6,3.82043518]
[1772466996580,3.6349115,2047.2,2045.7,3.82043518]
[1772466996780,3.6349115,2047.2,2045.8,1.002]
[1772466997404,3.6349115,2047.2,2045.9,1.002]
[1772466997705,1.2212398,2047.1,2046.0,1.22189638]
[1772466998105,1.22121683,2047.2,2046.0,1.22189638]
[1772466998271,1.22121683,2047.2,2046.1,1.002]
[1772466998982,1.22121683,2047.2,2046.2,1.002]
[1772466999714,3.6349115,2047.6,2046.2,1.002]
[1772466999715,4.88414808,2047.5,2046.2,4.82243518]
[1772466999874,3.6349115,2047.4,2045.7,8.7082596]
[1772467000074,3.7004475,2047.3,2045.8,1.002]
[1772467000375,3.7004475,2047.3,2045.9,1.002]
[1772467000602,3.6349115,2047.3,2045.9,1.002]
[1772467001104,3.6349115,2047.3,2045.9,4.82243518]
[1772467001512,3.6349115,2047.3,2045.9,3.82043518]
[1772467001679,3.6349115,2047.3,2046.0,1.001]
[1772467001882,1.22118014,2047.2,2046.1,1.22183666]
[1772467002077,4.85607381,2047.3,2046.2,1.001]
[1772467002510,4.85607381,2047.3,2046.3,1.001]
[1772467003020,4.85607381,2047.3,2046.4,1.001]
[1772467003321,4.88333617,2047.8,2046.5,3.82043518]
[1772467003844,3.95459989,2047.9,2046.5,3.82043518]
[1772467004027,3.95459989,2047.9,2046.7,3.82043518]
[1772467004228,3.6349115,2047.8,2046.6,1.22153816]
[1772467004434,3.6349115,2047.8,2046.7,1.001]
[1772467005120,3.6349115,2047.8,2046.4,4.88656247]
[1772467005322,3.6349115,2047.7,2046.5,1.0]
[1772467005526,3.6349115,2047.7,2046.0,4.88741947]
[1772467005732,3.6349115,2047.5,2046.0,4.88741947]
[1772467006024,3.6349115,2047.5,2046.1,2.22280023]
[1772467006025,3.6349115,2047.3,2046.1,2.22280023]
[1772467006394,3.6349115,2047.3,2046.2,1.001]
[1772467006600,3.6349115,2047.3,2046.3,1.001]
[1772467006817,3.6349115,2047.3,2046.1,1.22180023]
[1772467007018,3.6349115,2047.3,2046.2,1.001]
[1772467007519,3.6349115,2047.3,2046.1,1.22180023]
[1772467007721,3.6349115,2047.3,2046.0,1.22185588]
[1772467007920,3.44676333,2047.1,2046.1,2.22283532]
[1772467008095,1.22118014,2047.2,2046.1,2.22283532]
[1772467008923,1.22118014,2047.2,2046.2,1.001]
[1772467008924,3.44676333,2047.1,2046.2,1.001]
[1772467009229,3.44676333,2047.1,2045.9,1.2219561]
[1772467009425,3.44676333,2047.1,2046.0,1.001]
[1772467009627,3.44676333,2047.1,2046.1,1.001]
[1772467009816,3.44676333,2047.1,2045.8,1.22197237]
[1772467010166,3.44676333,2047.1,2045.4,4.88906334]
[1772467010167,3.44676333,2047.1,2045.4,0.001]
[1772467010168,3.44676333,2046.1,2045.4,0.001]
[1772467010353,0.065536,2046.4,2045.4,0.001]
[1772467010354,3.44676333,2045.9,2045.4,0.001]
[1772467010555,3.44676333,2045.9,2044.6,1.22269405]
[1772467010761,3.44676333,2045.9,2044.5,4.89107057]
[1772467010762,3.44676333,2045.9,2044.9,1.22255009]
[1772467010926,3.44676333,2045.9,2044.1,2.5031654]
[1772467011132,3.44676333,2045.9,2045.0,1.005]
[1772467011652,3.44676333,2045.9,2044.9,1.005]
[1772467011859,3.44676333,2045.9,2045.6,0.001]
[1772467012153,1.22201583,2045.8,2044.9,1.005]
[1772467012456,3.44676333,2045.7,2045.4,0.001]
[1772467012627,3.44676333,2045.7,2044.3,3.45318105]
[1772467012826,3.44676333,2045.7,2044.5,2.2267626]
[1772467013428,3.44676333,2045.7,2044.5,5.89501745]
[1772467013625,1.22201583,2045.8,2044.9,1.22253354]
[1772467013841,1.22201583,2045.8,2044.8,1.22257326]
[1772467014058,1.22201583,2045.8,2044.7,1.22267325]
[1772467014254,4.66877916,2045.8,2044.9,1.003]
[1772467014461,3.44676333,2045.7,2044.3,1.2239053]
[1772467014635,3.44676333,2045.7,2044.3,1.003]
[1772467014957,3.44676333,2045.7,2044.3,2.22590996]
[1772467015156,3.44676333,2045.5,2044.3,0.001]
[1772467015357,4.0170245,2045.4,2044.3,0.001]
[1772467015559,4.55976333,2045.4,2044.3,0.001]
[1772467015757,4.55976333,2045.4,2044.3,1.22385869]
[1772467016056,1.22231457,2045.3,2044.4,1.002]
[1772467016261,4.6690779,2045.3,2044.3,0.001]
[1772467016465,3.66178432,2045.1,2044.0,0.001]
[1772467016757,1.22231457,2045.3,2044.0,4.67626454]
[1772467017539,1.22231457,2045.3,2044.1,1.002]
[1772467017738,3.44676333,2045.2,2044.0,0.001]
[1772467017933,3.44676333,2045.2,2044.0,1.22408537]
[1772467018155,4.66919744,2045.1,2044.0,0.001]
[1772467018356,3.44676333,2045.0,2044.0,0.001]
[1772467018867,1.22243411,2045.1,2044.0,1.002]
[1772467019069,1.22243411,2045.1,2044.0,3.45318105]
[1772467019263,1.22243411,2045.1,2044.1,1.001]
[1772467019566,1.22243411,2045.1,2044.2,1.001]
[1772467020163,4.6690779,2045.3,2044.0,3.45318105]
[1772467020466,1.86271303,2044.7,2044.0,0.001]
[1772467020633,3.44676333,2045.0,2044.0,0.001]
[1772467020634,4.55876333,2045.0,2044.0,0.001]
[1772467020839,3.44676333,2044.9,2044.0,0.001]
[1772467021038,3.44676333,2044.7,2043.8,0.001]
[1772467021279,3.44676333,2044.7,2043.8,1.002]
[1772467021487,1.112,2045.0,2043.8,1.22420617]
[1772467021659,1.112,2045.0,2044.0,1.001]
[1772467022016,1.22231457,2045.3,2044.0,1.0]
[1772467022225,4.6690779,2045.3,2044.1,2.22303214]
[1772467022481,3.44676333,2045.2,2044.1,2.22303214]
[1772467022668,3.44676333,2045.2,2044.1,2.22403214]
[1772467022884,1.22231457,2045.3,2044.1,2.22403214]
[1772467023181,4.66894197,2045.6,2044.2,3.45218105]
[1772467023351,3.44676333,2045.5,2044.2,3.45218105]
[1772467023555,3.44676333,2045.5,2044.1,2.22403214]
[1772467023771,3.44676333,2045.5,2044.1,1.22303214]
[1772467023981,5.4694236,2045.3,2044.0,1.22304662]
[1772467024181,1.22237433,2045.2,2044.2,1.22297231]
[1772467024357,4.8290849,2045.2,2043.9,1.22310257]
[1772467024562,3.60671057,2045.1,2043.9,1.22310257]
[1772467024888,3.60671057,2044.9,2043.9,1.002]
[1772467025896,1.86271303,2044.5,2044.0,0.001]
[1772467026189,1.22285267,2044.4,2043.8,0.001]
[1772467026379,1.22285267,2044.4,2043.5,0.001]
[1772467026689,6.2159543,2044.2,2043.5,0.001]
[1772467026890,3.60671057,2044.2,2043.5,0.001]
[1772467027598,4.72071057,2044.1,2043.5,0.001]
[1772467028085,3.60671057,2044.0,2043.5,0.001]
[1772467028388,1.22315181,2043.9,2043.2,0.001]
[1772467029001,1.22291248,2044.3,2043.2,0.001]
[1772467029307,4.82962305,2044.3,2043.2,0.001]
[1772467030115,1.22273305,2044.6,2043.2,3.51600983]
[1772467030403,1.22273305,2044.6,2043.4,3.51500983]
[1772467030788,1.22273305,2044.6,2043.5,0.999]
[1772467031006,1.22249388,2045.0,2043.6,3.51500983]
[1772467031397,1.22241142,2045.2,2043.6,3.51500983]
[1772467032009,1.22222561,2045.5,2043.8,3.51500983]
[1772467032188,1.22222561,2045.5,2044.1,3.51500983]
[1772467032696,1.22222561,2045.5,2044.2,3.51500983]
[1772467032900,1.22222561,2045.5,2044.3,0.998]
[1772467033105,3.60671057,2045.4,2044.1,2.58742215]
[1772467033288,3.60671057,2045.4,2044.2,0.998]
[1772467034211,1.22231457,2045.3,2044.3,1.22291248]
[1772467034375,1.22231457,2045.3,2044.1,2.58742215]
[1772467034376,4.82902514,2045.3,2044.1,2.58742215]
[1772467034579,3.51044377,2045.1,2044.0,2.22106341]
[1772467034796,3.51044377,2045.1,2043.7,3.51500983]
[1772467035005,3.51044377,2044.9,2043.8,0.998]
[1772467035189,3.51044377,2044.7,2043.3,5.71984088]
[1772467035383,3.51044377,2044.7,2043.3,2.22147746]
[1772467036188,3.51044377,2044.7,2043.3,5.71984088]
[1772467036395,1.22273305,2044.6,2043.3,5.71984088]
[1772467036800,1.22273305,2044.6,2043.4,0.998]
[1772467037209,3.51044377,2044.3,2043.2,0.001]
[1772467037393,1.22273305,2044.6,2043.2,0.001]
[1772467037394,4.55633286,2044.2,2043.2,0.001]
[1772467037596,4.55633286,2044.2,2043.2,1.22456546]
[1772467037800,4.55633286,2044.2,2043.2,0.001]
[1772467038307,1.22303214,2044.1,2043.2,0.001]
[1772467038507,1.22303214,2044.1,2043.5,0.001]
[1772467038904,9.38292542,2044.2,2043.5,0.001]
[1772467038905,2.33801319,2044.2,2043.5,0.001]
[1772467039111,1.22301319,2044.2,2043.5,0.001]
[1772467039413,1.22301319,2044.2,2043.5,0.999]
[1772467039893,1.2229311,2044.3,2043.5,0.999]
[1772467040426,3.37579686,2044.2,2043.3,0.001]
[1772467040794,2.91171117,2044.1,2043.3,0.001]
[1772467041302,3.37579686,2044.5,2043.3,1.22450233]
[1772467041484,2.91161212,2044.4,2043.3,1.22450233]
[1772467041791,2.911833,2044.3,2043.4,0.997]
[1772467041993,2.911833,2044.3,2043.3,0.001]
[1772467041994,3.37579686,2044.1,2043.3,0.001]
[1772467042203,4.027833,2044.2,2043.3,0.001]
[1772467042204,3.37579686,2043.9,2043.3,0.001]
[1772467042414,1.22321166,2043.8,2043.3,0.001]
[1772467042820,1.22321166,2043.8,2042.9,0.001]
[1772467042821,3.52528185,2043.2,2042.9,0.001]
[1772467043004,3.52528185,2043.0,2041.7,1.22443396]
[1772467043322,3.52528185,2042.6,2041.7,0.001]
[1772467043504,1.117,2042.5,2041.7,0.001]
[1772467044292,0.14948499,2042.4,2041.7,0.001]
[1772467044516,1.22411007,2042.3,2041.7,0.001]
[1772467046395,1.22422995,2042.1,2040.8,1.2250098]
[1772467046595,4.60002681,2042.1,2041.0,0.996]
[1772467046796,3.37579686,2042.0,2040.9,0.996]
[1772467046990,2.34222995,2042.1,2040.9,0.996]
[1772467046991,1.22422995,2042.1,2040.9,0.996]
[1772467047195,1.22422995,2042.1,2041.0,0.996]
[1772467047431,0.14948499,2042.0,2040.8,1.2250098]
[1772467047726,3.52528185,2042.0,2040.6,2.22112986]
[1772467048024,1.119,2042.0,2040.7,3.5333743]
[1772467048196,1.119,2042.0,2040.7,4.5293743]
[1772467048398,1.22434987,2041.9,2040.8,2.2220098]
[1772467048615,1.22434987,2041.9,2040.9,3.5333743]
[1772467048815,3.37579686,2042.4,2040.9,3.5333743]
[1772467048816,1.22411007,2042.3,2040.9,3.5333743]
[1772467049323,1.22387036,2042.7,2041.1,3.5333743]
[1772467049523,3.44133286,2042.5,2041.2,0.997]
[1772467050028,3.52528185,2042.4,2041.1,0.997]
[1772467050501,0.14948499,2042.2,2041.2,1.22476974]
[1772467050704,1.22411007,2042.3,2041.2,1.22476974]
[1772467051419,3.52528185,2042.2,2041.2,0.997]
[1772467051624,1.22411007,2042.3,2041.2,0.997]
[1772467052027,1.22411007,2042.3,2041.2,4.5303743]
[1772467052610,4.59954741,2043.0,2041.4,3.5333743]
[1772467052810,4.89502785,2042.9,2041.4,3.5333743]
[1772467053006,4.89502785,2042.9,2041.6,3.5333743]
[1772467053636,4.89502785,2042.9,2041.7,3.5333743]
[1772467053800,4.89502785,2042.9,2041.7,4.5293743]
[1772467054003,1.22339124,2043.5,2041.8,4.5293743]
[1772467054224,1.22339124,2043.5,2041.9,3.5333743]
[1772467054507,4.8928542,2043.8,2042.1,3.5333743]
[1772467054718,1.22321166,2043.8,2042.3,3.5333743]
[1772467054927,1.22321166,2043.8,2042.5,3.5333743]
[1772467055104,1.22321166,2043.8,2042.6,0.996]
[1772467055300,1.22321166,2043.8,2042.5,3.5333743]
[1772467055501,1.22321166,2043.8,2042.6,0.996]
[1772467055502,0.14948499,2043.6,2042.6,0.996]
[1772467055922,3.37579686,2043.6,2042.2,5.42912577]
[1772467056129,1.22321166,2043.8,2042.7,0.996]
[1772467056612,1.22321166,2043.8,2042.8,1.22381045]
[1772467057501,1.22321166,2043.8,2042.9,0.995]
[1772467058202,1.22321166,2043.8,2042.8,1.22381045]
[1772467058404,0.14948499,2043.4,2042.5,0.995]
[1772467058623,1.22357086,2043.2,2042.5,0.995]
[1772467059227,1.22357086,2043.2,2042.5,1.22396792]
[1772467059431,4.59936772,2043.2,2042.2,0.995]
[1772467059833,3.52528185,2043.1,2042.2,0.995]
[1772467060213,3.52528185,2043.1,2041.6,1.22452978]
[1772467060413,3.52528185,2043.1,2041.7,0.995]
[1772467060608,3.52528185,2043.1,2041.8,0.995]
[1772467060609,3.37579686,2042.9,2041.8,0.995]
[1772467060813,1.22327151,2043.7,2041.9,3.5333743]
[1772467061538,8.26888292,2043.8,2041.9,3.5333743]
[1772467061836,1.22324502,2043.8,2041.9,3.5333743]
[1772467062041,1.22303214,2044.1,2042.3,3.5333743]
[1772467062246,8.26792542,2044.2,2042.5,3.5333743]
[1772467062247,1.22301557,2044.2,2042.5,3.5333743]
[1772467062751,0.002,2044.4,2042.7,3.5333743]
[1772467062943,0.002,2044.4,2042.9,3.5333743]
[1772467063111,0.002,2044.4,2043.1,3.5333743]
[1772467063316,0.002,2044.6,2043.1,3.5989103]
[1772467063616,0.002,2044.6,2043.1,3.5333743]
[1772467063911,0.002,2044.6,2043.3,3.5333743]
[1772467064451,0.002,2044.6,2043.5,3.5333743]
[1772467064663,0.002,2044.6,2043.9,3.5333743]
[1772467064813,0.002,2044.6,2044.0,0.994]
[1772467065013,0.002,2044.6,2044.1,0.994]
[1772467065746,3.37779686,2044.6,2043.7,0.994]
[1772467066052,3.52528185,2044.5,2043.6,0.994]
[1772467066635,3.52528185,2044.5,2043.1,4.75700505]
[1772467066832,3.37579686,2044.2,2043.3,0.993]
[1772467067076,1.22285267,2044.4,2043.3,0.993]
[1772467067363,4.89341068,2044.6,2043.4,3.66239216]
[1772467067364,0.002,2044.2,2043.4,3.66239216]
[1772467068136,0.002,2044.2,2043.5,0.993]
[1772467068432,0.002,2044.2,2043.4,0.993]
[1772467069161,0.002,2044.2,2043.5,0.993]
[1772467070465,0.002,2044.2,2043.3,1.22348273]
[1772467070763,0.002,2044.2,2043.4,0.993]
[1772467071066,0.002,2044.2,2043.1,1.22363075]
[1772467071271,0.002,2044.2,2043.2,0.993]
[1772467071659,0.002,2044.2,2043.3,0.993]
[1772467072639,0.002,2044.2,2043.1,1.22363075]
[1772467072840,0.002,2044.2,2043.2,0.993]
[1772467073282,0.002,2044.2,2043.3,1.22351098]
[1772467074076,3.77915343,2043.9,2042.9,0.993]
[1772467074444,0.067536,2044.2,2042.9,0.993]
[1772467074644,0.067536,2044.2,2042.9,4.65539216]
[1772467075142,1.22497231,2044.2,2043.0,1.22369065]
[1772467075450,3.77915343,2044.1,2043.1,0.993]
[1772467076385,1.22497231,2044.2,2043.2,3.66239216]
[1772467076560,0.002,2044.7,2043.2,3.66239216]
[1772467076561,0.002,2045.0,2043.3,0.065536]
[1772467076768,0.002,2045.0,2044.2,3.66239216]
[1772467076962,1.22196532,2045.9,2044.4,3.66239216]
[1772467077161,1.22177695,2046.2,2044.8,3.66239216]
[1772467077360,3.82565257,2046.3,2044.8,3.66239216]
[1772467077557,5.00085339,2046.4,2045.0,3.66239216]
[1772467077751,3.77915343,2046.3,2045.1,0.992]
[1772467078250,3.77915343,2046.3,2044.7,1.22267325]
[1772467078573,3.77915343,2046.3,2044.8,0.992]
[1772467079139,1.22177695,2046.2,2044.9,1.22255367]
[1772467079376,1.22177695,2046.2,2044.9,4.88494583]
[1772467079576,1.22177695,2046.2,2045.0,3.66239216]
[1772467080389,3.77915343,2046.7,2045.0,3.66239216]
[1772467080607,2.57057191,2046.9,2045.0,3.66239216]
[1772467080745,5.00243172,2047.1,2045.2,3.66239216]
[1772467080945,0.002,2047.1,2045.2,3.66239216]
[1772467081178,0.002,2047.1,2045.5,1.22219506]
[1772467081379,0.002,2047.1,2045.8,3.66239216]
[1772467081643,0.002,2047.1,2045.9,3.66239216]
[1772467081876,1.22295574,2047.6,2046.1,3.66239216]
[1772467082079,0.002,2047.6,2046.3,3.66239216]
[1772467082378,1.22101543,2047.5,2046.3,3.66239216]
[1772467082579,1.22101543,2047.5,2046.4,0.992]
[1772467082873,1.22101543,2047.5,2046.0,2.5843557]
[1772467083042,1.22101543,2047.5,2046.1,0.992]
[1772467083240,1.22101543,2047.5,2046.0,2.5843557]
[1772467083241,0.002,2046.4,2046.0,2.5843557]
[1772467083452,0.002,2046.4,2046.1,0.991]
[1772467083683,1.22101543,2047.5,2046.1,0.991]
[1772467083994,1.22101543,2047.5,2046.0,3.80624905]
[1772467083995,0.002,2046.7,2046.0,3.80624905]
[1772467084287,0.002,2046.7,2046.2,0.992]
[1772467084580,0.002,2046.7,2046.3,0.992]
[1772467084745,0.002,2046.7,2045.4,3.80657778]
[1772467084951,3.78115343,2046.7,2045.2,3.66239216]
[1772467085148,3.77915343,2046.5,2045.3,0.992]
[1772467085348,5.00081097,2046.4,2045.3,0.992]
[1772467085579,3.77915343,2046.3,2045.4,0.992]
[1772467085878,3.92863842,2046.2,2044.8,1.22257959]
[1772467086058,3.92863842,2046.2,2044.7,4.89062055]
[1772467086059,3.92863842,2046.2,2044.5,1.22279285]
[1772467086266,3.92863842,2046.0,2044.9,0.992]
[1772467086588,3.77915343,2045.4,2044.0,2.21505052]
[1772467086751,3.84468943,2045.6,2044.0,1.22305052]
[1772467086947,3.84468943,2045.6,2044.1,0.992]
[1772467087480,3.84468943,2045.6,2044.2,1.22297231]
[1772467087481,5.00134849,2045.5,2044.2,1.22297231]
[1772467087659,5.00134849,2045.5,2044.2,2.21397231]
[1772467088456,5.00134849,2045.5,2044.3,0.991]
[1772467088775,1.2219561,2045.9,2044.4,3.66239216]
[1772467089586,3.77915343,2046.3,2044.5,1.22279285]
[1772467089752,3.77915343,2046.3,2044.5,4.88518501]
[1772467089951,3.77915343,2046.3,2044.6,0.991]
[1772467090880,3.77915343,2046.3,2044.6,4.65339216]
[1772467091246,3.77915343,2046.1,2044.6,3.66239216]
[1772467091452,1.22213531,2045.6,2044.7,0.991]
[1772467093083,1.22213531,2045.6,2044.7,2.21366186]
[1772467093380,3.77915343,2045.5,2044.2,1.22292839]
[1772467093578,0.065536,2045.3,2043.8,4.89383147]
[1772467093748,1.22225481,2045.4,2043.9,4.65239216]
[1772467093955,1.22225481,2045.4,2044.2,3.66239216]
[1772467094147,1.28761157,2045.7,2044.2,3.66239216]
[1772467094369,1.22207557,2045.7,2044.3,0.99]
[1772467094572,1.22207557,2045.7,2044.2,3.66239216]
[1772467094847,3.72277714,2045.6,2044.2,3.66239216]
[1772467095076,3.72277714,2045.6,2044.3,0.99]
[1772467095280,3.72277714,2045.6,2044.4,0.99]
[1772467095477,4.88809188,2045.8,2044.6,1.22273305]
[1772467095682,4.88809188,2045.8,2044.4,2.21281158]
[1772467095683,3.72277714,2045.7,2044.4,2.21281158]
[1772467096061,3.78831314,2045.6,2044.0,1.22309197]
[1772467096266,3.78831314,2045.6,2044.3,0.99]
[1772467096579,3.78831314,2045.6,2044.9,0.001]
[1772467096580,3.87226213,2045.5,2044.9,0.001]
[1772467097159,3.87226213,2045.5,2044.4,0.99]
[1772467097470,3.87226213,2045.5,2044.7,0.001]
[1772467097692,3.68192149,2045.1,2044.2,0.989]
[1772467097877,3.89694248,2045.0,2043.8,0.99]
[1772467098052,3.89694248,2045.0,2044.4,0.001]
[1772467098458,3.74745749,2045.0,2044.4,0.001]
[1772467099471,3.89694248,2045.3,2044.4,0.001]
[1772467099689,3.74745749,2045.1,2044.4,0.001]
[1772467101771,1.22249388,2045.0,2044.4,0.001]
[1772467102489,3.68192149,2044.9,2043.8,0.001]
[1772467102699,3.68192149,2044.7,2043.8,0.001]
[1772467102896,3.68192149,2044.5,2043.8,0.001]
[1772467103599,4.90441537,2045.0,2043.8,2.21020601]
[1772467104522,4.90441537,2045.0,2043.9,3.71748566]
[1772467104523,1.22249388,2045.0,2043.9,3.71748566]
[1772467104682,1.22231457,2045.3,2043.9,3.71748566]
[1772467105779,4.88925829,2045.5,2044.0,1.22309197]
[1772467106080,8.57117978,2045.5,2044.1,3.71748566]
[1772467107276,4.88925829,2045.5,2044.3,3.71748566]
[1772467107480,4.88925829,2045.5,2044.2,6.21359362]
[1772467107910,4.88925829,2045.5,2044.3,1.22291248]
[1772467108109,4.88925829,2045.5,2044.4,0.987]
[1772467108808,3.68192149,2045.3,2044.3,0.987]
[1772467109307,3.68192149,2045.3,2043.9,1.22315181]
[1772467109483,3.68192149,2045.3,2044.3,0.987]
[1772467110106,1.22237433,2045.2,2044.3,0.987]
[1772467110519,3.08416999,2045.2,2044.3,0.987]
[1772467110695,1.86179566,2044.9,2043.8,5.92864777]
[1772467111109,1.86179566,2044.9,2044.4,0.001]
[1772467111414,3.08416999,2045.2,2044.4,0.001]
[1772467111613,1.22237433,2045.2,2044.4,0.988]
[1772467111782,1.22435832,2045.3,2044.4,0.988]
[1772467112212,0.002,2045.3,2044.5,1.22279285]
[1772467112716,0.002,2045.3,2044.5,4.94027851]
[1772467113598,0.002,2045.3,2044.6,0.987]
[1772467114486,3.67097655,2045.5,2044.6,2.20973131]
[1772467114686,3.87,2045.4,2044.6,5.92721697]
[1772467114891,1.22201583,2045.8,2044.7,3.71748566]
[1772467115409,2.9175194,2045.7,2044.8,0.987]
[1772467116314,1.22213531,2045.6,2044.8,2.20958755]
[1772467116883,1.22210745,2045.7,2044.8,2.20958755]
[1772467117112,5.31181118,2046.4,2044.9,3.71748566]
[1772467117313,2.91630399,2046.3,2044.9,3.71748566]
[1772467117514,1.22348859,2046.7,2044.9,3.71748566]
[1772467117829,1.22348859,2046.7,2045.1,3.71748566]
[1772467118325,1.22348859,2046.7,2045.3,3.71748566]
[1772467118326,1.86179566,2046.5,2045.3,3.71748566]
[1772467118622,4.90541008,2046.7,2045.3,3.71748566]
[1772467119115,1.22348859,2046.7,2045.3,3.71748566]
[1772467119987,1.22348859,2046.7,2045.4,0.987]
[1772467120310,0.002,2046.7,2045.6,1.22213531]
[1772467121083,3.68392149,2046.7,2045.5,1.22215259]
[1772467121616,3.68392149,2046.7,2045.1,1.2224128]
[1772467121617,3.68192149,2046.3,2045.1,1.2224128]
[1772467121791,3.68192149,2046.3,2045.2,0.987]
[1772467121991,4.79692149,2046.3,2045.2,0.987]
[1772467122209,1.22189638,2046.0,2045.2,0.987]
[1772467122414,4.90381787,2046.0,2044.8,1.22261345]
[1772467122616,4.90381787,2046.0,2045.1,0.987]
[1772467122817,4.90381787,2046.0,2044.8,1.22261345]
[1772467123024,3.68192149,2045.9,2045.1,0.987]
[1772467123194,3.68192149,2045.9,2045.0,0.987]
[1772467123402,1.22189638,2046.0,2045.0,0.987]
[1772467125019,1.22177695,2046.2,2045.2,3.71748566]
[1772467125914,1.22177695,2046.2,2045.3,0.986]
[1772467126217,1.22177695,2046.2,2045.4,0.986]
[1772467126919,4.88701646,2046.3,2045.5,1.22219506]
[1772467127493,1.22171724,2046.3,2045.5,1.22219506]
[1772467127699,1.22352499,2046.7,2045.6,3.56819971]
[1772467128430,0.002,2046.0,2045.7,0.985]
[1772467128631,0.002,2046.0,2045.8,0.986]
[1772467128846,0.002,2046.2,2045.8,0.986]
[1772467128995,0.002,2046.2,2045.9,1.2219561]
[1772467129323,0.002,2046.7,2045.9,1.2219561]
[1772467129527,0.002,2046.5,2045.9,1.2219561]
[1772467129832,0.002,2046.5,2046.0,3.56819971]
[1772467130046,0.002,2046.9,2046.0,3.56819971]
[1772467130204,0.002,2046.9,2046.2,3.56819971]
[1772467130399,0.002,2046.9,2046.4,3.56819971]
[1772467131036,1.22336178,2046.9,2046.3,0.987]